[Event "Titled Tuesday Blitz January 10 Early 2023"]
[White "Player, Edmund C"]
[Black "Taboas Rodriguez, Daniel"]
[WhiteFideId "406520"]
[BlackFideId "2208466"]
[WhiteElo "2204"]
[BlackElo "2371"]
[Result "0-1"]
[Round "01"]
[TimeControl "180+2"]
[Date "2023.01.10"]
[WhiteClock "0:00:13"]
[BlackClock "0:01:05"]

1. e4 {[%clk 0:02:59]}  e5 {[%clk 0:02:59]} 2. Nf3 {[%clk 0:02:54]}  Nc6 {[%clk 0:02:59]} 3. Bb5 {[%clk 0:02:54]}  Nf6 {[%clk 0:02:59]} 4. d3 {[%clk 0:02:54]}  d6 {[%clk 0:02:59]} 5. O-O {[%clk 0:02:52]}  Bd7 {[%clk 0:02:59]} 6. c3 {[%clk 0:02:52]}  g6 {[%clk 0:02:59]} 7. Nbd2 {[%clk 0:02:47]}  Bg7 {[%clk 0:02:59]} 8. Re1 {[%clk 0:02:47]}  O-O {[%clk 0:02:57]} 9. Nf1 {[%clk 0:02:46]}  Nh5 {[%clk 0:02:55]} 10. d4 {[%clk 0:02:32]}  Nxd4 {[%clk 0:02:49]} 11. Nxd4 {[%clk 0:02:23]}  exd4 {[%clk 0:02:45]} 12. Bxd7 {[%clk 0:02:22]}  dxc3 {[%clk 0:02:45]} 13. Bg4 {[%clk 0:01:48]}  cxb2 {[%clk 0:02:44]} 14. Bxb2 {[%clk 0:01:40]}  Bxb2 {[%clk 0:02:45]} 15. Rb1 {[%clk 0:01:40]}  Be5 {[%clk 0:02:43]} 16. Bxh5 {[%clk 0:01:39]}  gxh5 {[%clk 0:02:43]} 17. Qxh5 {[%clk 0:01:38]}  b6 {[%clk 0:02:37]} 18. Ne3 {[%clk 0:01:37]}  Kh8 {[%clk 0:02:29]} 19. Nf5 {[%clk 0:01:24]}  Qf6 {[%clk 0:02:28]} 20. Rb3 {[%clk 0:01:18]}  Rg8 {[%clk 0:02:18]} 21. Rh3 {[%clk 0:01:09]}  Qg6 {[%clk 0:02:18]} 22. Qf3 {[%clk 0:01:09]}  Rae8 {[%clk 0:02:03]} 23. g3 {[%clk 0:00:48]}  c5 {[%clk 0:01:29]} 24. Rh6 {[%clk 0:00:30]}  Qg4 {[%clk 0:01:29]} 25. Qg2 {[%clk 0:00:30]}  Rg6 {[%clk 0:01:17]} 26. h3 {[%clk 0:00:20]}  Qg5 {[%clk 0:01:16]} 27. h4 {[%clk 0:00:20]}  Qd2 {[%clk 0:01:07]} 28. Rf1 {[%clk 0:00:17]}  Rxh6 {[%clk 0:01:07]} 29. Nxh6 {[%clk 0:00:18]}  Qxh6 {[%clk 0:01:07]} 30. f4 {[%clk 0:00:16]}  Bd4+ {[%clk 0:01:07]} 31. Kh1 {[%clk 0:00:16]}  Rg8 {[%clk 0:01:08]} 32. Rf3 {[%clk 0:00:15]}  Qg6 {[%clk 0:01:08]} 33. Kh2 {[%clk 0:00:16]}  Qxe4 {[%clk 0:01:07]} 34. f5 {[%clk 0:00:15]}  Qg4 {[%clk 0:01:07]} 35. Rf4 {[%clk 0:00:15]}  Qh5 {[%clk 0:01:05]} 36. Kh3 {[%clk 0:00:14]}  Be5 {[%clk 0:01:04]} 37. Rf3 {[%clk 0:00:13]}  Qg4+ {[%clk 0:01:05]} 38. Kh2 {[%clk 0:00:13]}  Qxh4+ {[%clk 0:01:05]} 0-1


[Site "https://www.chess.com"]

[Event "Titled Tuesday Blitz January 10 Early 2023"]
[White "Bashirli, Saadat"]
[Black "Hamley, Ryan"]
[WhiteFideId "13429990"]
[BlackFideId "30959497"]
[WhiteElo "1571"]
[BlackElo "2092"]
[Result "1/2-1/2"]
[Round "01"]
[TimeControl "180+2"]
[Date "2023.01.10"]
[WhiteClock "0:00:07"]
[BlackClock "0:01:29"]

1. d4 {[%clk 0:02:58]}  Nf6 {[%clk 0:02:59]} 2. c4 {[%clk 0:02:58]}  e6 {[%clk 0:02:59]} 3. Nc3 {[%clk 0:02:58]}  Bb4 {[%clk 0:02:59]} 4. e3 {[%clk 0:02:58]}  O-O {[%clk 0:02:58]} 5. Bd3 {[%clk 0:02:56]}  Bxc3+ {[%clk 0:02:56]} 6. bxc3 {[%clk 0:02:55]}  d6 {[%clk 0:02:57]} 7. Nf3 {[%clk 0:02:53]}  Nbd7 {[%clk 0:02:56]} 8. O-O {[%clk 0:02:53]}  b6 {[%clk 0:02:56]} 9. e4 {[%clk 0:02:53]}  e5 {[%clk 0:02:55]} 10. Bg5 {[%clk 0:02:48]}  Re8 {[%clk 0:02:52]} 11. Bc2 {[%clk 0:02:46]}  h6 {[%clk 0:02:52]} 12. Bxf6 {[%clk 0:02:38]}  Qxf6 {[%clk 0:02:50]} 13. Ba4 {[%clk 0:02:30]}  exd4 {[%clk 0:02:38]} 14. cxd4 {[%clk 0:02:31]}  Rxe4 {[%clk 0:02:38]} 15. Bc6 {[%clk 0:02:29]}  Ba6 {[%clk 0:02:06]} 16. Bxe4 {[%clk 0:02:20]}  Re8 {[%clk 0:02:05]} 17. Bd3 {[%clk 0:02:18]}  Nf8 {[%clk 0:02:05]} 18. Re1 {[%clk 0:02:16]}  Rd8 {[%clk 0:02:05]} 19. Qa4 {[%clk 0:02:14]}  Bb7 {[%clk 0:02:04]} 20. Be4 {[%clk 0:02:13]}  Bxe4 {[%clk 0:01:58]} 21. Rxe4 {[%clk 0:02:14]}  Ne6 {[%clk 0:01:58]} 22. Rae1 {[%clk 0:02:10]}  d5 {[%clk 0:01:56]} 23. cxd5 {[%clk 0:02:08]}  Rxd5 {[%clk 0:01:57]} 24. Qc6 {[%clk 0:01:57]}  Rd6 {[%clk 0:01:56]} 25. Qe8+ {[%clk 0:01:55]}  Kh7 {[%clk 0:01:55]} 26. Ne5 {[%clk 0:01:45]}  Ng5 {[%clk 0:01:48]} 27. Rg4 {[%clk 0:01:29]}  Qf5 {[%clk 0:01:45]} 28. Qb5 {[%clk 0:01:18]}  f6 {[%clk 0:01:37]} 29. Qd3 {[%clk 0:01:14]}  g6 {[%clk 0:01:33]} 30. Qxf5 {[%clk 0:00:33]}  gxf5 {[%clk 0:01:33]} 31. Nc4 {[%clk 0:00:25]}  fxg4 {[%clk 0:01:30]} 32. Nxd6 {[%clk 0:00:24]}  cxd6 {[%clk 0:01:31]} 33. Re7+ {[%clk 0:00:25]}  Kg6 {[%clk 0:01:32]} 34. Rxa7 {[%clk 0:00:25]}  Ne6 {[%clk 0:01:32]} 35. d5 {[%clk 0:00:24]}  Nf4 {[%clk 0:01:33]} 36. Rd7 {[%clk 0:00:23]}  Nxd5 {[%clk 0:01:33]} 37. Rxd6 {[%clk 0:00:23]}  Nc3 {[%clk 0:01:33]} 38. Rxb6 {[%clk 0:00:18]}  Nxa2 {[%clk 0:01:33]} 39. Rb3 {[%clk 0:00:16]}  Nc1 {[%clk 0:01:34]} 40. Re3 {[%clk 0:00:15]}  Na2 {[%clk 0:01:34]} 41. Re4 {[%clk 0:00:15]}  f5 {[%clk 0:01:32]} 42. Ra4 {[%clk 0:00:15]}  Nc3 {[%clk 0:01:33]} 43. Ra6+ {[%clk 0:00:15]}  Kg5 {[%clk 0:01:32]} 44. Kf1 {[%clk 0:00:16]}  h5 {[%clk 0:01:32]} 45. Ra8 {[%clk 0:00:16]}  h4 {[%clk 0:01:32]} 46. Rg8+ {[%clk 0:00:16]}  Kf4 {[%clk 0:01:33]} 47. Re8 {[%clk 0:00:15]}  Ne4 {[%clk 0:01:33]} 48. g3+ {[%clk 0:00:15]}  hxg3 {[%clk 0:01:32]} 49. hxg3+ {[%clk 0:00:14]}  Kf3 {[%clk 0:01:33]} 50. Rf8 {[%clk 0:00:13]}  Nd2+ {[%clk 0:01:26]} 51. Ke1 {[%clk 0:00:12]}  Ne4 {[%clk 0:01:26]} 52. Rxf5+ {[%clk 0:00:11]}  Kg2 {[%clk 0:01:26]} 53. Rf4 {[%clk 0:00:09]}  Ng5 {[%clk 0:01:27]} 54. Rxg4 {[%clk 0:00:09]}  Nf3+ {[%clk 0:01:27]} 55. Ke2 {[%clk 0:00:08]}  Ng1+ {[%clk 0:01:28]} 56. Ke3 {[%clk 0:00:08]}  Nh3 {[%clk 0:01:28]} 57. Rg8 {[%clk 0:00:09]}  Nxf2 {[%clk 0:01:29]} 58. g4 {[%clk 0:00:08]}  Nd1+ {[%clk 0:01:26]} 59. Kf4 {[%clk 0:00:08]}  Nc3 {[%clk 0:01:26]} 60. g5 {[%clk 0:00:08]}  Nd5+ {[%clk 0:01:27]} 61. Kf5 {[%clk 0:00:08]}  Ne7+ {[%clk 0:01:27]} 62. Kf6 {[%clk 0:00:08]}  Nxg8+ {[%clk 0:01:28]} 63. Kg7 {[%clk 0:00:08]}  Ne7 {[%clk 0:01:28]} 64. Kf7 {[%clk 0:00:08]}  Nf5 {[%clk 0:01:28]} 65. g6 {[%clk 0:00:08]}  Kg3 {[%clk 0:01:29]} 66. Kf6 {[%clk 0:00:08]}  Kg4 {[%clk 0:01:29]} 67. g7 {[%clk 0:00:07]}  Nxg7 {[%clk 0:01:29]} 1/2-1/2


[Site "https://www.chess.com"]

[Event "Titled Tuesday Blitz January 10 Early 2023"]
[White "Real_taiatai"]
[Black "Szpar, Milosz"]
[BlackFideId "1184989"]
[WhiteElo "2318"]
[BlackElo "2447"]
[Result "0-1"]
[Round "01"]
[TimeControl "180+2"]
[Date "2023.01.10"]
[WhiteClock "0:00:12"]
[BlackClock "0:01:35"]

1. e4 {[%clk 0:02:56]}  c5 {[%clk 0:02:59]} 2. Nf3 {[%clk 0:02:56]}  d6 {[%clk 0:02:59]} 3. Bb5+ {[%clk 0:02:57]}  Bd7 {[%clk 0:02:59]} 4. Bxd7+ {[%clk 0:02:57]}  Nxd7 {[%clk 0:02:59]} 5. O-O {[%clk 0:02:57]}  Ngf6 {[%clk 0:02:59]} 6. Re1 {[%clk 0:02:57]}  e6 {[%clk 0:02:59]} 7. c4 {[%clk 0:02:54]}  Be7 {[%clk 0:02:58]} 8. Nc3 {[%clk 0:02:55]}  O-O {[%clk 0:02:57]} 9. b3 {[%clk 0:02:53]}  a6 {[%clk 0:02:47]} 10. Bb2 {[%clk 0:02:52]}  Rb8 {[%clk 0:02:47]} 11. d4 {[%clk 0:02:49]}  b5 {[%clk 0:02:44]} 12. cxb5 {[%clk 0:02:42]}  axb5 {[%clk 0:02:44]} 13. e5 {[%clk 0:02:43]}  dxe5 {[%clk 0:02:19]} 14. dxe5 {[%clk 0:02:43]}  Ne8 {[%clk 0:02:19]} 15. Qe2 {[%clk 0:02:28]}  Qb6 {[%clk 0:02:19]} 16. Rad1 {[%clk 0:02:25]}  Qc6 {[%clk 0:02:19]} 17. Rd2 {[%clk 0:02:06]}  Nc7 {[%clk 0:02:19]} 18. Red1 {[%clk 0:02:05]}  Nb6 {[%clk 0:02:19]} 19. Ne4 {[%clk 0:02:01]}  Ncd5 {[%clk 0:02:17]} 20. Nfg5 {[%clk 0:01:55]}  h6 {[%clk 0:02:15]} 21. Nf3 {[%clk 0:01:53]}  Ra8 {[%clk 0:02:09]} 22. a3 {[%clk 0:01:42]}  Rfc8 {[%clk 0:02:09]} 23. Rc2 {[%clk 0:01:40]}  c4 {[%clk 0:02:02]} 24. Nd4 {[%clk 0:01:33]}  Qd7 {[%clk 0:02:02]} 25. Nd6 {[%clk 0:01:13]}  Bxd6 {[%clk 0:01:57]} 26. exd6 {[%clk 0:01:13]}  c3 {[%clk 0:01:58]} 27. Bc1 {[%clk 0:01:08]}  b4 {[%clk 0:01:54]} 28. Nb5 {[%clk 0:00:57]}  bxa3 {[%clk 0:01:44]} 29. Bxa3 {[%clk 0:00:48]}  Ra5 {[%clk 0:01:43]} 30. Nc7 {[%clk 0:00:20]}  Rxa3 {[%clk 0:01:42]} 31. g3 {[%clk 0:00:15]}  Nxc7 {[%clk 0:01:42]} 32. dxc7 {[%clk 0:00:15]}  Nd5 {[%clk 0:01:42]} 33. Qc4 {[%clk 0:00:14]}  Qxc7 {[%clk 0:01:41]} 34. Qd4 {[%clk 0:00:12]}  Rxb3 {[%clk 0:01:40]} 35. Rdc1 {[%clk 0:00:12]}  Rb2 {[%clk 0:01:36]} 36. Rxb2 {[%clk 0:00:12]}  cxb2 {[%clk 0:01:36]} 37. Rb1 {[%clk 0:00:12]}  Qc1+ {[%clk 0:01:35]} 0-1


[Site "https://www.chess.com"]

[Event "Titled Tuesday Blitz January 10 Early 2023"]
[White "Djokic, Mihailo"]
[Black "Fishchuk, Vladyslav"]
[WhiteFideId "976440"]
[BlackFideId "34122117"]
[WhiteElo "2192"]
[BlackElo "2252"]
[Result "1-0"]
[Round "01"]
[TimeControl "180+2"]
[Date "2023.01.10"]
[WhiteClock "0:01:12"]
[BlackClock "0:01:39"]

1. e4 {[%clk 0:03:00]}  c5 {[%clk 0:02:59]} 2. Nf3 {[%clk 0:03:00]}  Nc6 {[%clk 0:02:59]} 3. d4 {[%clk 0:02:59]}  cxd4 {[%clk 0:03:00]} 4. Nxd4 {[%clk 0:02:58]}  Nf6 {[%clk 0:03:01]} 5. Nc3 {[%clk 0:02:57]}  e5 {[%clk 0:02:59]} 6. Ndb5 {[%clk 0:02:56]}  d6 {[%clk 0:02:59]} 7. Bg5 {[%clk 0:02:56]}  a6 {[%clk 0:02:59]} 8. Bxf6 {[%clk 0:02:53]}  gxf6 {[%clk 0:03:00]} 9. Na3 {[%clk 0:02:53]}  b5 {[%clk 0:03:00]} 10. Nd5 {[%clk 0:02:53]}  f5 {[%clk 0:03:01]} 11. c3 {[%clk 0:02:53]}  Be6 {[%clk 0:02:44]} 12. exf5 {[%clk 0:02:50]}  Bxf5 {[%clk 0:02:44]} 13. Qf3 {[%clk 0:02:50]}  Be6 {[%clk 0:02:26]} 14. Nf6+ {[%clk 0:02:44]}  Ke7 {[%clk 0:02:26]} 15. Rd1 {[%clk 0:02:42]}  Bg7 {[%clk 0:02:20]} 16. Nh5 {[%clk 0:02:40]}  b4 {[%clk 0:02:02]} 17. Qxc6 {[%clk 0:01:54]}  bxa3 {[%clk 0:02:00]} 18. Nxg7 {[%clk 0:01:50]}  Rc8 {[%clk 0:01:53]} 19. Nxe6 {[%clk 0:01:31]}  fxe6 {[%clk 0:01:47]} 20. Qxa6 {[%clk 0:01:27]}  axb2 {[%clk 0:01:47]} 21. Qb7+ {[%clk 0:01:15]}  Qc7 {[%clk 0:01:41]} 22. Qxb2 {[%clk 0:01:12]}  Rb8 {[%clk 0:01:39]} 1-0


[Site "https://www.chess.com"]

[Event "Titled Tuesday Blitz January 10 Early 2023"]
[White "Broca Jimenez, Fernando"]
[Black "Blanco Ronquillo, Humberto L."]
[WhiteFideId "5104742"]
[BlackFideId "3504239"]
[WhiteElo "2075"]
[BlackElo "2442"]
[Result "0-1"]
[Round "01"]
[TimeControl "180+2"]
[Date "2023.01.10"]
[WhiteClock "0:00:06"]
[BlackClock "0:01:52"]

1. e4 {[%clk 0:02:50]}  c5 {[%clk 0:02:59]} 2. c3 {[%clk 0:02:47]}  d5 {[%clk 0:02:58]} 3. exd5 {[%clk 0:02:44]}  Qxd5 {[%clk 0:02:59]} 4. d4 {[%clk 0:02:44]}  Nc6 {[%clk 0:02:58]} 5. Nf3 {[%clk 0:02:44]}  Bg4 {[%clk 0:02:55]} 6. Be2 {[%clk 0:02:40]}  cxd4 {[%clk 0:02:54]} 7. cxd4 {[%clk 0:02:12]}  e6 {[%clk 0:02:54]} 8. Nc3 {[%clk 0:02:10]}  Qd6 {[%clk 0:02:53]} 9. d5 {[%clk 0:01:44]}  exd5 {[%clk 0:02:53]} 10. Qxd5 {[%clk 0:01:40]}  Qxd5 {[%clk 0:02:50]} 11. Nxd5 {[%clk 0:01:41]}  O-O-O {[%clk 0:02:50]} 12. Nc3 {[%clk 0:01:15]}  Bb4 {[%clk 0:02:48]} 13. Bd2 {[%clk 0:00:41]}  Nf6 {[%clk 0:02:38]} 14. O-O-O {[%clk 0:00:37]}  Rhe8 {[%clk 0:02:37]} 15. Rhe1 {[%clk 0:00:36]}  Bc5 {[%clk 0:02:35]} 16. h3 {[%clk 0:00:20]}  Bh5 {[%clk 0:02:15]} 17. g4 {[%clk 0:00:16]}  Bg6 {[%clk 0:02:15]} 18. Bb5 {[%clk 0:00:10]}  Bxf2 {[%clk 0:01:58]} 19. Rxe8 {[%clk 0:00:09]}  Rxe8 {[%clk 0:01:59]} 20. Bxc6 {[%clk 0:00:06]}  bxc6 {[%clk 0:01:58]} 21. Bf4 {[%clk 0:00:07]}  Be3+ {[%clk 0:01:55]} 22. Bxe3 {[%clk 0:00:06]}  Rxe3 {[%clk 0:01:56]} 23. Nd4 {[%clk 0:00:06]}  Kc7 {[%clk 0:01:52]} 0-1


[Site "https://www.chess.com"]

[Event "Titled Tuesday Blitz January 10 Early 2023"]
[White "Klose, Eli"]
[Black "Aspire_ie"]
[WhiteFideId "16242955"]
[WhiteElo "1519"]
[BlackElo "2307"]
[Result "1-0"]
[Round "01"]
[TimeControl "180+2"]
[Date "2023.01.10"]
[WhiteClock "0:00:18"]
[BlackClock "0:00:01"]

1. e4 {[%clk 0:02:29]}  d6 {[%clk 0:02:59]} 2. d4 {[%clk 0:02:29]}  Nf6 {[%clk 0:02:58]} 3. Nc3 {[%clk 0:02:27]}  g6 {[%clk 0:02:58]} 4. Bg5 {[%clk 0:02:27]}  Bg7 {[%clk 0:02:57]} 5. e5 {[%clk 0:02:28]}  Nfd7 {[%clk 0:02:56]} 6. exd6 {[%clk 0:02:27]}  cxd6 {[%clk 0:02:55]} 7. Qd2 {[%clk 0:02:28]}  h6 {[%clk 0:02:53]} 8. Be3 {[%clk 0:02:27]}  Nf6 {[%clk 0:02:50]} 9. h3 {[%clk 0:02:22]}  Nc6 {[%clk 0:02:48]} 10. Nf3 {[%clk 0:02:21]}  Bd7 {[%clk 0:02:32]} 11. Bd3 {[%clk 0:02:16]}  Qa5 {[%clk 0:02:29]} 12. O-O {[%clk 0:02:14]}  g5 {[%clk 0:01:55]} 13. Ne4 {[%clk 0:01:59]}  Qxd2 {[%clk 0:01:45]} 14. Nexd2 {[%clk 0:01:54]}  Nd5 {[%clk 0:01:41]} 15. c3 {[%clk 0:01:50]}  O-O {[%clk 0:01:32]} 16. Rae1 {[%clk 0:01:49]}  Nxe3 {[%clk 0:01:23]} 17. fxe3 {[%clk 0:01:50]}  f5 {[%clk 0:01:10]} 18. e4 {[%clk 0:01:49]}  f4 {[%clk 0:01:09]} 19. e5 {[%clk 0:01:44]}  dxe5 {[%clk 0:01:07]} 20. dxe5 {[%clk 0:01:43]}  Be6 {[%clk 0:00:59]} 21. Bc4 {[%clk 0:01:39]}  Bxc4 {[%clk 0:00:56]} 22. Nxc4 {[%clk 0:01:40]}  Rad8 {[%clk 0:00:54]} 23. a4 {[%clk 0:01:35]}  Rd5 {[%clk 0:00:52]} 24. Re4 {[%clk 0:01:34]}  Rfd8 {[%clk 0:00:51]} 25. Rfe1 {[%clk 0:01:32]}  Kf7 {[%clk 0:00:40]} 26. e6+ {[%clk 0:01:30]}  Kg6 {[%clk 0:00:34]} 27. Kf2 {[%clk 0:01:30]}  Bf6 {[%clk 0:00:31]} 28. R1e2 {[%clk 0:01:20]}  Kf5 {[%clk 0:00:24]} 29. g4+ {[%clk 0:01:17]}  fxg3+ {[%clk 0:00:22]} 30. Kxg3 {[%clk 0:01:17]}  h5 {[%clk 0:00:21]} 31. Re1 {[%clk 0:01:05]}  Rd3 {[%clk 0:00:21]} 32. Kg2 {[%clk 0:01:02]}  g4 {[%clk 0:00:19]} 33. hxg4+ {[%clk 0:01:02]}  hxg4 {[%clk 0:00:20]} 34. Nh2 {[%clk 0:00:59]}  Rg8 {[%clk 0:00:12]} 35. R4e3 {[%clk 0:00:55]}  Rxe3 {[%clk 0:00:11]} 36. Nxe3+ {[%clk 0:00:55]}  Kf4 {[%clk 0:00:10]} 37. Nhxg4 {[%clk 0:00:52]}  Rxg4+ {[%clk 0:00:10]} 38. Nxg4 {[%clk 0:00:52]}  Kxg4 {[%clk 0:00:11]} 39. Rd1 {[%clk 0:00:53]}  Ne5 {[%clk 0:00:09]} 40. Rd8 {[%clk 0:00:49]}  Kf5 {[%clk 0:00:09]} 41. Rb8 {[%clk 0:00:47]}  b6 {[%clk 0:00:07]} 42. Rb7 {[%clk 0:00:47]}  Kxe6 {[%clk 0:00:06]} 43. Rxa7 {[%clk 0:00:47]}  Kd5 {[%clk 0:00:06]} 44. Kf2 {[%clk 0:00:46]}  Nc4 {[%clk 0:00:05]} 45. b3 {[%clk 0:00:45]}  Nd2 {[%clk 0:00:05]} 46. c4+ {[%clk 0:00:42]}  Kc6 {[%clk 0:00:05]} 47. Ke2 {[%clk 0:00:40]}  Nxb3 {[%clk 0:00:05]} 48. Kd3 {[%clk 0:00:40]}  Nc5+ {[%clk 0:00:05]} 49. Kc2 {[%clk 0:00:41]}  e5 {[%clk 0:00:05]} 50. Rh7 {[%clk 0:00:39]}  e4 {[%clk 0:00:04]} 51. Rh6 {[%clk 0:00:39]}  Nd7 {[%clk 0:00:04]} 52. Kd1 {[%clk 0:00:37]}  Kc5 {[%clk 0:00:04]} 53. Rh7 {[%clk 0:00:36]}  Ne5 {[%clk 0:00:04]} 54. Rh6 {[%clk 0:00:33]}  Bg5 {[%clk 0:00:03]} 55. Rh5 {[%clk 0:00:34]}  Bf4 {[%clk 0:00:04]} 56. Rf5 {[%clk 0:00:34]}  Bg3 {[%clk 0:00:03]} 57. Rg5 {[%clk 0:00:34]}  Bh2 {[%clk 0:00:02]} 58. Rh5 {[%clk 0:00:25]}  Bf4 {[%clk 0:00:02]} 59. Rh4 {[%clk 0:00:25]}  Nd3 {[%clk 0:00:01]} 60. a5 {[%clk 0:00:18]} 1-0


[Site "https://www.chess.com"]

[Event "Titled Tuesday Blitz January 10 Early 2023"]
[White "Lopez Del Alamo, Antonio"]
[Black "Osmak, Yuliia"]
[WhiteFideId "2227339"]
[BlackFideId "14101602"]
[WhiteElo "2280"]
[BlackElo "2440"]
[Result "0-1"]
[Round "01"]
[TimeControl "180+2"]
[Date "2023.01.10"]
[WhiteClock "0:00:02"]
[BlackClock "0:00:06"]

1. e4 {[%clk 0:02:58]}  c6 {[%clk 0:02:58]} 2. d4 {[%clk 0:02:50]}  d5 {[%clk 0:02:57]} 3. exd5 {[%clk 0:02:49]}  cxd5 {[%clk 0:02:57]} 4. Bd3 {[%clk 0:02:49]}  Nc6 {[%clk 0:02:56]} 5. c3 {[%clk 0:02:49]}  Nf6 {[%clk 0:02:55]} 6. Ne2 {[%clk 0:02:48]}  Bg4 {[%clk 0:02:52]} 7. O-O {[%clk 0:02:47]}  e6 {[%clk 0:02:52]} 8. Bf4 {[%clk 0:02:43]}  Bd6 {[%clk 0:02:30]} 9. Bxd6 {[%clk 0:02:36]}  Qxd6 {[%clk 0:02:31]} 10. Nd2 {[%clk 0:02:34]}  O-O {[%clk 0:02:29]} 11. Qb3 {[%clk 0:02:21]}  Na5 {[%clk 0:02:21]} 12. Qa4 {[%clk 0:02:17]}  b6 {[%clk 0:02:18]} 13. Ng3 {[%clk 0:02:15]}  Nh5 {[%clk 0:02:12]} 14. Rae1 {[%clk 0:01:52]}  Nxg3 {[%clk 0:02:10]} 15. fxg3 {[%clk 0:01:43]}  Rac8 {[%clk 0:02:04]} 16. Re5 {[%clk 0:01:37]}  f6 {[%clk 0:01:54]} 17. Re3 {[%clk 0:01:31]}  Bh5 {[%clk 0:01:51]} 18. Qc2 {[%clk 0:01:25]}  h6 {[%clk 0:01:48]} 19. Bg6 {[%clk 0:01:22]}  Bxg6 {[%clk 0:01:47]} 20. Qxg6 {[%clk 0:01:21]}  Qd7 {[%clk 0:01:40]} 21. g4 {[%clk 0:01:09]}  Qf7 {[%clk 0:01:39]} 22. Qd3 {[%clk 0:01:04]}  Nc4 {[%clk 0:01:27]} 23. Nxc4 {[%clk 0:01:02]}  Rxc4 {[%clk 0:01:28]} 24. Rfe1 {[%clk 0:01:02]}  Rc6 {[%clk 0:01:26]} 25. Qb5 {[%clk 0:00:56]}  Rfc8 {[%clk 0:01:23]} 26. h3 {[%clk 0:00:53]}  Rd6 {[%clk 0:00:57]} 27. a4 {[%clk 0:00:44]}  Qe8 {[%clk 0:00:55]} 28. Qe2 {[%clk 0:00:40]}  Kf7 {[%clk 0:00:49]} 29. a5 {[%clk 0:00:35]}  b5 {[%clk 0:00:47]} 30. b4 {[%clk 0:00:19]}  a6 {[%clk 0:00:46]} 31. g5 {[%clk 0:00:15]}  hxg5 {[%clk 0:00:42]} 32. Qh5+ {[%clk 0:00:15]}  Kg8 {[%clk 0:00:41]} 33. Qg4 {[%clk 0:00:14]}  Rcc6 {[%clk 0:00:37]} 34. h4 {[%clk 0:00:14]}  gxh4 {[%clk 0:00:35]} 35. Qxh4 {[%clk 0:00:14]}  Qg6 {[%clk 0:00:34]} 36. Rg3 {[%clk 0:00:13]}  Qf5 {[%clk 0:00:28]} 37. Rf1 {[%clk 0:00:13]}  Qe4 {[%clk 0:00:12]} 38. Qxf6 {[%clk 0:00:12]}  Qe3+ {[%clk 0:00:11]} 39. Rxe3 {[%clk 0:00:11]}  gxf6 {[%clk 0:00:11]} 40. Rxf6 {[%clk 0:00:12]}  Kg7 {[%clk 0:00:11]} 41. Ref3 {[%clk 0:00:11]}  Rxc3 {[%clk 0:00:10]} 42. Rf7+ {[%clk 0:00:11]}  Kg6 {[%clk 0:00:10]} 43. Rxc3 {[%clk 0:00:08]}  Kxf7 {[%clk 0:00:10]} 44. Kf2 {[%clk 0:00:07]}  Kf6 {[%clk 0:00:10]} 45. Ke3 {[%clk 0:00:06]}  e5 {[%clk 0:00:10]} 46. dxe5+ {[%clk 0:00:07]}  Kxe5 {[%clk 0:00:10]} 47. Rc5 {[%clk 0:00:05]}  Rg6 {[%clk 0:00:10]} 48. Kf2 {[%clk 0:00:05]}  Ke4 {[%clk 0:00:09]} 49. Rc8 {[%clk 0:00:04]}  d4 {[%clk 0:00:09]} 50. Re8+ {[%clk 0:00:04]}  Kd3 {[%clk 0:00:09]} 51. Kf3 {[%clk 0:00:02]}  Kc3 {[%clk 0:00:09]} 52. Re1 {[%clk 0:00:02]}  Kxb4 {[%clk 0:00:08]} 53. g4 {[%clk 0:00:03]}  Kc3 {[%clk 0:00:05]} 54. Kf4 {[%clk 0:00:03]}  d3 {[%clk 0:00:05]} 55. Rc1+ {[%clk 0:00:02]}  Kb2 {[%clk 0:00:05]} 56. Rd1 {[%clk 0:00:02]}  Kc2 {[%clk 0:00:05]} 57. Rg1 {[%clk 0:00:02]}  d2 {[%clk 0:00:06]} 0-1


[Site "https://www.chess.com"]

[Event "Titled Tuesday Blitz January 10 Early 2023"]
[White "Zanette, Edgard Vinicius"]
[Black "Djokovic, Nebojsa"]
[WhiteFideId "2109263"]
[BlackFideId "938300"]
[WhiteElo "2085"]
[BlackElo "2119"]
[Result "0-1"]
[Round "01"]
[TimeControl "180+2"]
[Date "2023.01.10"]
[WhiteClock "0:00:53"]
[BlackClock "0:01:27"]

1. e4 {[%clk 0:02:56]}  e6 {[%clk 0:03:00]} 2. d4 {[%clk 0:02:56]}  d5 {[%clk 0:03:00]} 3. Nd2 {[%clk 0:02:56]}  c5 {[%clk 0:03:00]} 4. exd5 {[%clk 0:02:55]}  Qxd5 {[%clk 0:03:00]} 5. Ngf3 {[%clk 0:02:53]}  cxd4 {[%clk 0:03:00]} 6. Bc4 {[%clk 0:02:51]}  Qd8 {[%clk 0:02:59]} 7. Nb3 {[%clk 0:02:50]}  Nc6 {[%clk 0:02:59]} 8. Nbxd4 {[%clk 0:02:50]}  Nxd4 {[%clk 0:02:58]} 9. Qxd4 {[%clk 0:02:49]}  Qxd4 {[%clk 0:02:57]} 10. Nxd4 {[%clk 0:02:50]}  a6 {[%clk 0:02:56]} 11. O-O {[%clk 0:02:50]}  Nf6 {[%clk 0:02:52]} 12. a4 {[%clk 0:02:44]}  Bd7 {[%clk 0:02:48]} 13. a5 {[%clk 0:02:41]}  Rc8 {[%clk 0:02:39]} 14. Bb3 {[%clk 0:02:40]}  Bc5 {[%clk 0:02:38]} 15. Nf3 {[%clk 0:02:32]}  Ke7 {[%clk 0:02:29]} 16. Bg5 {[%clk 0:02:19]}  h6 {[%clk 0:02:28]} 17. Bh4 {[%clk 0:02:19]}  Rhd8 {[%clk 0:02:24]} 18. Ne5 {[%clk 0:02:11]}  g5 {[%clk 0:02:22]} 19. Nxd7 {[%clk 0:02:06]}  Rxd7 {[%clk 0:02:16]} 20. Bg3 {[%clk 0:02:05]}  Ne4 {[%clk 0:02:10]} 21. Rfd1 {[%clk 0:01:48]}  f5 {[%clk 0:01:48]} 22. Rxd7+ {[%clk 0:01:41]}  Kxd7 {[%clk 0:01:48]} 23. Rd1+ {[%clk 0:01:06]}  Ke7 {[%clk 0:01:42]} 24. Kf1 {[%clk 0:00:59]}  f4 {[%clk 0:01:33]} 25. f3 {[%clk 0:00:57]}  fxg3 {[%clk 0:01:29]} 26. hxg3 {[%clk 0:00:53]}  Nxg3+ {[%clk 0:01:27]} 27. Ke1 {[%clk 0:00:53]} 0-1


[Site "https://www.chess.com"]